[Event "Late-Titled-Tuesday-Blitz-April-30-2024"]
[Site "Chess.com"]
[Date "2024.04.30"]
[Round "5"]
[White "StelaSfw"]
[Black "KVAIDAN"]
[Result "0-1"]
[WhiteElo "1699"]
[BlackElo "2346"]
[TimeControl "180+1"]
[EndTime "14:56:34 PDT"]
[Termination "KVAIDAN won by checkmate"]

1. e4 {[%clk 0:02:47.9]} 1... e5 {[%clk 0:02:56.5]} 2. Nf3 {[%clk 0:02:47.3]}
2... d5 {[%clk 0:02:56.3]} 3. exd5 {[%clk 0:02:46.5]} 3... e4 {[%clk 0:02:56]}
4. Ng1 {[%clk 0:02:40]} 4... Nf6 {[%clk 0:02:46.5]} 5. c4 {[%clk 0:02:34.7]}
5... c6 {[%clk 0:02:45.8]} 6. dxc6 {[%clk 0:02:33.2]} 6... Nxc6 {[%clk 0:02:45]}
7. Nc3 {[%clk 0:02:29.6]} 7... Bb4 {[%clk 0:02:43.9]} 8. d3 {[%clk 0:02:10.6]}
8... Bg4 {[%clk 0:02:40.8]} 9. Be2 {[%clk 0:02:06]} 9... Bxe2 {[%clk 0:02:39.7]}
10. Qxe2 {[%clk 0:02:05.7]} 10... Qxd3 {[%clk 0:02:39.1]} 11. Qxd3 {[%clk
0:02:04.3]} 11... exd3 {[%clk 0:02:36.8]} 12. Bd2 {[%clk 0:02:02.4]} 12... Nd4
{[%clk 0:02:35.6]} 13. O-O-O {[%clk 0:01:55.9]} 13... O-O-O {[%clk 0:02:35.4]}
14. Nh3 {[%clk 0:01:54]} 14... Bxc3 {[%clk 0:02:27.2]} 15. Bxc3 {[%clk
0:01:53.2]} 15... Ne2+ {[%clk 0:02:27.6]} 16. Kd2 {[%clk 0:01:52.1]} 16... Ne4+
{[%clk 0:02:27.3]} 17. Ke3 {[%clk 0:01:40.5]} 17... N4xc3 {[%clk 0:02:25.7]} 18.
bxc3 {[%clk 0:01:38.5]} 18... Nxc3 {[%clk 0:02:24.8]} 19. Rxd3 {[%clk
0:01:37.1]} 19... Rhe8+ {[%clk 0:02:25.1]} 20. Kd2 {[%clk 0:01:35.7]} 20...
Rxd3+ {[%clk 0:02:21.1]} 21. Kxd3 {[%clk 0:01:35]} 21... Nxa2 {[%clk 0:02:21.7]}
22. Ra1 {[%clk 0:01:32.7]} 22... Nb4+ {[%clk 0:02:21]} 23. Kc3 {[%clk
0:01:31.1]} 23... Nc6 {[%clk 0:02:21]} 24. Ra2 {[%clk 0:01:27.1]} 24... Re4
{[%clk 0:02:12]} 25. f3 {[%clk 0:01:25.7]} 25... Re3+ {[%clk 0:02:09.7]} 26. Kd2
{[%clk 0:01:23.9]} 26... Re7 {[%clk 0:02:05.1]} 27. Nf4 {[%clk 0:01:13.7]} 27...
Rd7+ {[%clk 0:02:03.5]} 28. Kc3 {[%clk 0:01:12.4]} 28... Rd1 {[%clk 0:01:59]}
29. Nd5 {[%clk 0:01:09.3]} 29... Rc1+ {[%clk 0:01:54.8]} 30. Kd2 {[%clk
0:01:05.4]} 30... Rxc4 {[%clk 0:01:53.5]} 31. Ke3 {[%clk 0:00:41.4]} 31... Rc5
{[%clk 0:01:49.4]} 32. Rd2 {[%clk 0:00:32.7]} 32... a5 {[%clk 0:01:47.2]} 33.
Nb6+ {[%clk 0:00:29.7]} 33... Kc7 {[%clk 0:01:46.2]} 34. Nd5+ {[%clk 0:00:28.2]}
34... Kb8 {[%clk 0:01:46.6]} 35. Nb6 {[%clk 0:00:26.1]} 35... Ne5 {[%clk
0:01:32.2]} 36. Kd4 {[%clk 0:00:22.7]} 36... Rb5 {[%clk 0:01:32]} 37. Nd7+
{[%clk 0:00:21.4]} 37... Nxd7 {[%clk 0:01:31]} 38. Kc4 {[%clk 0:00:21.3]} 38...
Rb4+ {[%clk 0:01:30.1]} 39. Kc3 {[%clk 0:00:19.4]} 39... Kc7 {[%clk 0:01:28.7]}
40. Ra2 {[%clk 0:00:18.4]} 40... b6 {[%clk 0:01:28]} 41. Re2 {[%clk 0:00:17.9]}
41... Kd6 {[%clk 0:01:27.7]} 42. Rd2+ {[%clk 0:00:17.7]} 42... Kc6 {[%clk
0:01:27.9]} 43. Re2 {[%clk 0:00:17.5]} 43... Rh4 {[%clk 0:01:24]} 44. h3 {[%clk
0:00:16.5]} 44... Rh6 {[%clk 0:01:24.2]} 45. Re4 {[%clk 0:00:16.1]} 45... Nc5
{[%clk 0:01:23.2]} 46. Rc4 {[%clk 0:00:16.5]} 46... Rd6 {[%clk 0:01:22.2]} 47.
Kb2 {[%clk 0:00:13.3]} 47... b5 {[%clk 0:01:21.7]} 48. Rc2 {[%clk 0:00:13.5]}
48... b4 {[%clk 0:01:21.8]} 49. Kb1 {[%clk 0:00:13.1]} 49... Kb5 {[%clk
0:01:22.2]} 50. Rb2 {[%clk 0:00:12.6]} 50... a4 {[%clk 0:01:22.1]} 51. Re2
{[%clk 0:00:12.2]} 51... b3 {[%clk 0:01:21]} 52. Re7 {[%clk 0:00:11.3]} 52...
Kb4 {[%clk 0:01:21.3]} 53. Rxf7 {[%clk 0:00:11.6]} 53... Kc3 {[%clk 0:01:21.4]}
54. Rxg7 {[%clk 0:00:11.5]} 54... Rd1# {[%clk 0:01:21.8]} 0-1

[Event "Late-Titled-Tuesday-Blitz-April-30-2024"]
[Site "Chess.com"]
[Date "2024.04.30"]
[Round "5"]
[White "WoodlandMagic"]
[Black "Crazy_girl99"]
[Result "1-0"]
[WhiteElo "2873"]
[BlackElo "2661"]
[TimeControl "180+1"]
[EndTime "14:56:37 PDT"]
[Termination "WoodlandMagic won by resignation"]

1. e4 {[%clk 0:03:00.9]} 1... e5 {[%clk 0:02:58.3]} 2. Nf3 {[%clk 0:03:01.3]}
2... Nc6 {[%clk 0:02:58.1]} 3. Bb5 {[%clk 0:03:01.9]} 3... a6 {[%clk 0:02:57.6]}
4. Ba4 {[%clk 0:03:01.9]} 4... Nf6 {[%clk 0:02:58]} 5. O-O {[%clk 0:03:02]} 5...
Nxe4 {[%clk 0:02:58.3]} 6. d4 {[%clk 0:02:59]} 6... b5 {[%clk 0:02:58.2]} 7. Bb3
{[%clk 0:02:58.7]} 7... d5 {[%clk 0:02:58.9]} 8. dxe5 {[%clk 0:02:57.7]} 8...
Be6 {[%clk 0:02:59.6]} 9. c3 {[%clk 0:02:53.6]} 9... Be7 {[%clk 0:02:58.3]} 10.
Bc2 {[%clk 0:02:51.6]} 10... O-O {[%clk 0:02:57.4]} 11. Nbd2 {[%clk 0:02:50]}
11... f5 {[%clk 0:02:55.2]} 12. Nb3 {[%clk 0:02:48.5]} 12... Qd7 {[%clk
0:02:42.5]} 13. Nbd4 {[%clk 0:02:46.2]} 13... Nxd4 {[%clk 0:02:42.8]} 14. Nxd4
{[%clk 0:02:45.3]} 14... c5 {[%clk 0:02:43]} 15. Nxe6 {[%clk 0:02:45.5]} 15...
Qxe6 {[%clk 0:02:43.7]} 16. f3 {[%clk 0:02:45]} 16... Ng5 {[%clk 0:02:44.4]} 17.
a4 {[%clk 0:02:14.6]} 17... Rad8 {[%clk 0:02:33.9]} 18. axb5 {[%clk 0:02:11]}
18... axb5 {[%clk 0:02:34.8]} 19. Qe2 {[%clk 0:01:58.8]} 19... c4 {[%clk
0:02:26.2]} 20. Be3 {[%clk 0:01:54.6]} 20... b4 {[%clk 0:01:31.4]} 21. Qd2
{[%clk 0:01:14.6]} 21... Nf7 {[%clk 0:01:25.2]} 22. f4 {[%clk 0:01:13.4]} 22...
b3 {[%clk 0:01:17.6]} 23. Bd1 {[%clk 0:01:12.7]} 23... Qc6 {[%clk 0:00:55.7]}
24. Bf3 {[%clk 0:01:08]} 24... Rd7 {[%clk 0:00:54.6]} 25. Rfd1 {[%clk
0:01:03.8]} 25... Rfd8 {[%clk 0:00:54.3]} 26. Qd4 {[%clk 0:01:00.4]} 26... g5
{[%clk 0:00:43.1]} 27. g3 {[%clk 0:01:00.2]} 27... gxf4 {[%clk 0:00:41]} 28.
gxf4 {[%clk 0:01:00.5]} 28... Bf8 {[%clk 0:00:33.9]} 29. Kh1 {[%clk 0:00:57.8]}
29... Qe6 {[%clk 0:00:32.5]} 30. Rg1+ {[%clk 0:00:54.3]} 30... Kh8 {[%clk
0:00:32.8]} 31. Ra6 {[%clk 0:00:52]} 31... Qxa6 {[%clk 0:00:09.1]} 32. e6+
{[%clk 0:00:52.3]} 32... Ne5 {[%clk 0:00:09.3]} 33. exd7 {[%clk 0:00:50]} 33...
Bg7 {[%clk 0:00:09.3]} 34. Rxg7 {[%clk 0:00:45.7]} 34... Kxg7 {[%clk 0:00:08.6]}
35. Qxe5+ {[%clk 0:00:45.6]} 35... Qf6 {[%clk 0:00:07.7]} 36. Qxd5 {[%clk
0:00:37.6]} 36... Qe7 {[%clk 0:00:05.7]} 37. Bd4+ {[%clk 0:00:36.5]} 37... Kf8
{[%clk 0:00:05.9]} 38. Bc5 {[%clk 0:00:36.8]} 38... Rxd7 {[%clk 0:00:04.7]} 39.
Bxe7+ {[%clk 0:00:36.1]} 39... Kxe7 {[%clk 0:00:05.6]} 40. Qxd7+ {[%clk
0:00:35.7]} 40... Kxd7 {[%clk 0:00:05.2]} 41. Bd5 {[%clk 0:00:36.4]} 1-0

[Event "Late-Titled-Tuesday-Blitz-April-30-2024"]
[Site "Chess.com"]
[Date "2024.04.30"]
[Round "5"]
[White "burritus"]
[Black "NowInChess"]
[Result "1-0"]
[WhiteElo "2421"]
[BlackElo "2256"]
[TimeControl "180+1"]
[EndTime "14:56:37 PDT"]
[Termination "burritus won by resignation"]

1. d4 {[%clk 0:03:00.9]} 1... Nf6 {[%clk 0:02:59.6]} 2. Nf3 {[%clk 0:03:00.8]}
2... g6 {[%clk 0:02:59.3]} 3. g3 {[%clk 0:03:00.5]} 3... Bg7 {[%clk 0:02:59.1]}
4. c4 {[%clk 0:03:00.7]} 4... d6 {[%clk 0:02:58.7]} 5. Bg2 {[%clk 0:03:01]} 5...
O-O {[%clk 0:02:59]} 6. O-O {[%clk 0:03:01.7]} 6... c6 {[%clk 0:02:59.4]} 7. Nc3
{[%clk 0:02:59.9]} 7... Qa5 {[%clk 0:02:59.3]} 8. h3 {[%clk 0:02:54.9]} 8... Be6
{[%clk 0:02:55.5]} 9. Qd3 {[%clk 0:02:42.9]} 9... Na6 {[%clk 0:02:35.3]} 10. a3
{[%clk 0:02:38.8]} 10... d5 {[%clk 0:02:25.8]} 11. cxd5 {[%clk 0:02:25.2]} 11...
Nxd5 {[%clk 0:02:19.1]} 12. Ng5 {[%clk 0:02:16.4]} 12... Bf5 {[%clk 0:01:45.6]}
13. e4 {[%clk 0:02:13.7]} 13... Nxc3 {[%clk 0:01:43.9]} 14. bxc3 {[%clk
0:02:07.2]} 14... Bd7 {[%clk 0:01:32.2]} 15. Rb1 {[%clk 0:02:00.4]} 15... b5
{[%clk 0:01:11.1]} 16. f4 {[%clk 0:01:49.1]} 16... c5 {[%clk 0:00:59.7]} 17. f5
{[%clk 0:01:46.1]} 17... cxd4 {[%clk 0:00:54.8]} 18. cxd4 {[%clk 0:01:45.9]}
18... Rac8 {[%clk 0:00:46.2]} 19. Bd2 {[%clk 0:01:42.2]} 19... Qb6 {[%clk
0:00:40.9]} 20. Be3 {[%clk 0:01:42.5]} 20... Qa5 {[%clk 0:00:22.7]} 21. Rbc1
{[%clk 0:01:32.2]} 21... Rxc1 {[%clk 0:00:19.4]} 22. Rxc1 {[%clk 0:01:31.5]}
22... Rc8 {[%clk 0:00:18.8]} 23. Rxc8+ {[%clk 0:01:29.8]} 23... Bxc8 {[%clk
0:00:19.4]} 24. g4 {[%clk 0:01:29.5]} 24... Qe1+ {[%clk 0:00:16.8]} 25. Kh2
{[%clk 0:01:29.3]} 25... Nc7 {[%clk 0:00:12.7]} 26. Bf4 {[%clk 0:01:26]} 26...
Qa5 {[%clk 0:00:10.4]} 27. e5 {[%clk 0:01:20.8]} 27... h6 {[%clk 0:00:04]} 28.
Bd2 {[%clk 0:00:44.6]} 28... Qb6 {[%clk 0:00:03.2]} 29. Ne4 {[%clk 0:00:43]}
29... Bb7 {[%clk 0:00:03]} 30. fxg6 {[%clk 0:00:41]} 30... fxg6 {[%clk
0:00:03.9]} 31. Nc5 {[%clk 0:00:31.7]} 31... Bxg2 {[%clk 0:00:03.9]} 32. Kxg2
{[%clk 0:00:32.6]} 32... Qc6+ {[%clk 0:00:04.1]} 33. Qf3 {[%clk 0:00:32.9]}
33... Kh7 {[%clk 0:00:04.6]} 34. Qxc6 {[%clk 0:00:31.5]} 1-0

[Event "Late-Titled-Tuesday-Blitz-April-30-2024"]
[Site "Chess.com"]
[Date "2024.04.30"]
[Round "5"]
[White "tgpgoat"]
[Black "oskariot"]
[Result "0-1"]
[WhiteElo "2460"]
[BlackElo "2743"]
[TimeControl "180+1"]
[EndTime "14:56:38 PDT"]
[Termination "oskariot won by resignation"]

1. Nf3 {[%clk 0:03:00.9]} 1... c5 {[%clk 0:02:57.2]} 2. b3 {[%clk 0:02:59.5]}
2... Nc6 {[%clk 0:02:53.1]} 3. Bb2 {[%clk 0:03:00.1]} 3... Nf6 {[%clk
0:02:47.1]} 4. e3 {[%clk 0:03:00.7]} 4... g6 {[%clk 0:02:47.4]} 5. d4 {[%clk
0:03:00.4]} 5... Bg7 {[%clk 0:02:45.4]} 6. Be2 {[%clk 0:03:00.2]} 6... O-O
{[%clk 0:02:44.9]} 7. O-O {[%clk 0:03:00.4]} 7... cxd4 {[%clk 0:02:44.3]} 8.
Nxd4 {[%clk 0:03:00.3]} 8... d6 {[%clk 0:02:44.6]} 9. c4 {[%clk 0:03:00.2]} 9...
Bd7 {[%clk 0:02:45]} 10. Nc3 {[%clk 0:02:59.8]} 10... Qa5 {[%clk 0:02:45.8]} 11.
Bf3 {[%clk 0:02:56.5]} 11... Rfc8 {[%clk 0:02:46.2]} 12. Qd2 {[%clk 0:02:29.3]}
12... Rab8 {[%clk 0:02:44.9]} 13. Rfd1 {[%clk 0:02:28.1]} 13... a6 {[%clk
0:02:45.1]} 14. Nxc6 {[%clk 0:02:25.7]} 14... bxc6 {[%clk 0:02:39.9]} 15. Qc2
{[%clk 0:01:57.5]} 15... Bf5 {[%clk 0:02:38.1]} 16. e4 {[%clk 0:01:57.3]} 16...
Be6 {[%clk 0:02:32.3]} 17. Ne2 {[%clk 0:01:54.1]} 17... Nd7 {[%clk 0:02:21.5]}
18. Bxg7 {[%clk 0:01:52.3]} 18... Kxg7 {[%clk 0:02:22.4]} 19. Nf4 {[%clk
0:01:49.4]} 19... Qe5 {[%clk 0:02:20.7]} 20. Nxe6+ {[%clk 0:01:46.6]} 20... fxe6
{[%clk 0:02:18.7]} 21. Qd2 {[%clk 0:01:42.6]} 21... Rf8 {[%clk 0:02:15.8]} 22.
Qd4 {[%clk 0:01:35.9]} 22... Qxd4 {[%clk 0:02:10.2]} 23. Rxd4 {[%clk 0:01:36.8]}
23... e5 {[%clk 0:01:59.6]} 24. Rd2 {[%clk 0:01:35.5]} 24... a5 {[%clk
0:02:00.1]} 25. Rb1 {[%clk 0:01:29.8]} 25... Nc5 {[%clk 0:02:00.3]} 26. a3
{[%clk 0:01:13]} 26... Rxb3 {[%clk 0:01:50.4]} 27. Rxb3 {[%clk 0:01:11.2]} 27...
Nxb3 {[%clk 0:01:51.3]} 28. Rb2 {[%clk 0:01:11.3]} 28... Nd4 {[%clk 0:01:48.2]}
29. Rb7 {[%clk 0:01:09.2]} 29... Kf6 {[%clk 0:01:29.2]} 30. Bd1 {[%clk
0:01:08.8]} 30... Ra8 {[%clk 0:01:25.5]} 31. Ba4 {[%clk 0:01:06.1]} 31... Ra6
{[%clk 0:01:14.9]} 32. f3 {[%clk 0:01:03.7]} 32... Ne6 {[%clk 0:01:12.6]} 33.
Kf2 {[%clk 0:01:00.9]} 33... Nc5 {[%clk 0:01:12.6]} 34. Bb5 {[%clk 0:00:57.2]}
34... cxb5 {[%clk 0:01:09.6]} 35. cxb5 {[%clk 0:00:58.1]} 35... Ra8 {[%clk
0:01:04.6]} 36. Rb6 {[%clk 0:00:57.2]} 36... a4 {[%clk 0:01:04.5]} 37. Ke3
{[%clk 0:00:55.8]} 37... Ke6 {[%clk 0:01:03.6]} 38. Kd2 {[%clk 0:00:55.9]} 38...
Kd7 {[%clk 0:00:58.6]} 39. Kc3 {[%clk 0:00:56.1]} 39... Kc7 {[%clk 0:00:51.5]}
40. Rc6+ {[%clk 0:00:56.1]} 40... Kb7 {[%clk 0:00:52.2]} 41. Kb4 {[%clk
0:00:57]} 41... Rc8 {[%clk 0:00:51.6]} 42. Rxc8 {[%clk 0:00:51.9]} 42... Kxc8
{[%clk 0:00:52.5]} 43. b6 {[%clk 0:00:48.9]} 43... Kb7 {[%clk 0:00:52.5]} 44.
Kb5 {[%clk 0:00:49.5]} 44... g5 {[%clk 0:00:51]} 45. g4 {[%clk 0:00:49]} 45...
h6 {[%clk 0:00:51.3]} 46. Ka5 {[%clk 0:00:47.8]} 46... Nd7 {[%clk 0:00:47.9]}
47. Kxa4 {[%clk 0:00:47.2]} 47... Kxb6 {[%clk 0:00:48.6]} 48. Kb4 {[%clk
0:00:47.6]} 48... Nc5 {[%clk 0:00:48.9]} 49. a4 {[%clk 0:00:47.6]} 49... Nd3+
{[%clk 0:00:47.3]} 50. Kc4 {[%clk 0:00:48.1]} 50... Ne1 {[%clk 0:00:41]} 51. Kd5
{[%clk 0:00:46.8]} 51... Nxf3 {[%clk 0:00:41.3]} 52. h3 {[%clk 0:00:47]} 52...
Nd4 {[%clk 0:00:38.4]} 53. Kc4 {[%clk 0:00:43.4]} 53... Ka5 {[%clk 0:00:38.5]}
54. Kd5 {[%clk 0:00:42.6]} 54... Kxa4 {[%clk 0:00:39]} 55. Kc4 {[%clk
0:00:41.9]} 55... e6 {[%clk 0:00:39.6]} 56. Kd3 {[%clk 0:00:41.5]} 56... Kb5
{[%clk 0:00:40.5]} 57. Kc3 {[%clk 0:00:41.8]} 57... Kc5 {[%clk 0:00:41.1]} 58.
Kd3 {[%clk 0:00:42.7]} 58... Nc6 {[%clk 0:00:41.3]} 59. Kc3 {[%clk 0:00:43]}
59... Ne7 {[%clk 0:00:41.7]} 0-1

[Event "Late-Titled-Tuesday-Blitz-April-30-2024"]
[Site "Chess.com"]
[Date "2024.04.30"]
[Round "5"]
[White "Perecke"]
[Black "realburq"]
[Result "1-0"]
[WhiteElo "2566"]
[BlackElo "2385"]
[TimeControl "180+1"]
[EndTime "14:56:40 PDT"]
[Termination "Perecke won by resignation"]

1. e4 {[%clk 0:02:48.7]} 1... c5 {[%clk 0:02:59.2]} 2. Nf3 {[%clk 0:02:47.9]}
2... Nc6 {[%clk 0:02:59.9]} 3. d4 {[%clk 0:02:48.2]} 3... cxd4 {[%clk 0:03:00]}
4. Nxd4 {[%clk 0:02:49.1]} 4... Nf6 {[%clk 0:02:58]} 5. Nc3 {[%clk 0:02:47.6]}
5... e5 {[%clk 0:02:57.8]} 6. Ndb5 {[%clk 0:02:48.2]} 6... d6 {[%clk 0:02:57.2]}
7. Nd5 {[%clk 0:02:48.7]} 7... Nxd5 {[%clk 0:02:46.2]} 8. exd5 {[%clk
0:02:49.6]} 8... Nb8 {[%clk 0:02:42.6]} 9. a4 {[%clk 0:02:49.8]} 9... a6 {[%clk
0:02:41.5]} 10. Na3 {[%clk 0:02:49.6]} 10... Be7 {[%clk 0:02:27.9]} 11. Be2
{[%clk 0:02:42.6]} 11... O-O {[%clk 0:02:27]} 12. O-O {[%clk 0:02:35]} 12... f5
{[%clk 0:02:25.9]} 13. Bd2 {[%clk 0:02:34.3]} 13... Nd7 {[%clk 0:02:25.2]} 14.
a5 {[%clk 0:02:34.2]} 14... Bg5 {[%clk 0:02:09.3]} 15. Bb4 {[%clk 0:02:31.4]}
15... Nf6 {[%clk 0:02:00.6]} 16. Nc4 {[%clk 0:02:31]} 16... Ne4 {[%clk
0:01:59.6]} 17. f3 {[%clk 0:02:21.6]} 17... Nc5 {[%clk 0:01:52.8]} 18. Bxc5
{[%clk 0:02:16.8]} 18... dxc5 {[%clk 0:01:52]} 19. Nxe5 {[%clk 0:02:17.7]} 19...
Re8 {[%clk 0:01:45.2]} 20. f4 {[%clk 0:02:16.8]} 20... Bf6 {[%clk 0:01:45.3]}
21. Nc4 {[%clk 0:02:01.2]} 21... Bd7 {[%clk 0:01:33.3]} 22. d6 {[%clk 0:01:44]}
22... Bb5 {[%clk 0:01:23.1]} 23. c3 {[%clk 0:01:35.6]} 23... Re4 {[%clk
0:01:10.3]} 24. Rf2 {[%clk 0:01:29.7]} 24... Kh8 {[%clk 0:01:00.7]} 25. Nb6
{[%clk 0:01:28.2]} 25... Rb8 {[%clk 0:00:52]} 26. Bxb5 {[%clk 0:01:26.8]} 26...
axb5 {[%clk 0:00:51.5]} 27. Qd5 {[%clk 0:01:27.3]} 27... Qe8 {[%clk 0:00:31]}
28. d7 {[%clk 0:01:27.1]} 28... Re1+ {[%clk 0:00:30.1]} 29. Rxe1 {[%clk
0:01:27.5]} 29... Qxe1+ {[%clk 0:00:29.7]} 30. Rf1 {[%clk 0:01:28.2]} 30... Qe3+
{[%clk 0:00:29.6]} 31. Kh1 {[%clk 0:01:28.2]} 31... b4 {[%clk 0:00:17]} 32. Qxf5
{[%clk 0:00:58.2]} 32... bxc3 {[%clk 0:00:16.2]} 33. bxc3 {[%clk 0:00:56.9]}
33... Rd8 {[%clk 0:00:14.8]} 34. Nd5 {[%clk 0:00:45.5]} 34... Qe2 {[%clk
0:00:10.8]} 35. Rg1 {[%clk 0:00:46.1]} 35... Bxc3 {[%clk 0:00:01.2]} 36. Nxc3
{[%clk 0:00:45.4]} 36... Rg8 {[%clk 0:00:00.4]} 37. Nd5 {[%clk 0:00:45.2]} 37...
Qd2 {[%clk 0:00:00.7]} 38. Qe6 {[%clk 0:00:43.7]} 38... c4 {[%clk 0:00:00.5]}
39. Qxg8+ {[%clk 0:00:43.7]} 1-0

[Event "Late-Titled-Tuesday-Blitz-April-30-2024"]
[Site "Chess.com"]
[Date "2024.04.30"]
[Round "5"]
[White "Jospem"]
[Black "Sanan_Sjugirov"]
[Result "1-0"]
[WhiteElo "3126"]
[BlackElo "3008"]
[TimeControl "180+1"]
[EndTime "14:56:41 PDT"]
[Termination "Jospem won by resignation"]

1. e4 {[%clk 0:03:00.9]} 1... c6 {[%clk 0:02:59.1]} 2. d4 {[%clk 0:03:00.7]}
2... d5 {[%clk 0:02:59.7]} 3. e5 {[%clk 0:03:01.1]} 3... Bf5 {[%clk 0:02:59.4]}
4. h4 {[%clk 0:03:01.7]} 4... Qc8 {[%clk 0:02:50.9]} 5. Bd3 {[%clk 0:03:00.8]}
5... Bxd3 {[%clk 0:02:48.7]} 6. cxd3 {[%clk 0:03:01.7]} 6... e6 {[%clk
0:02:45.1]} 7. Nf3 {[%clk 0:03:01.9]} 7... Ne7 {[%clk 0:02:38.4]} 8. Nc3 {[%clk
0:03:00.9]} 8... h6 {[%clk 0:02:29.9]} 9. h5 {[%clk 0:02:59.9]} 9... c5 {[%clk
0:02:17.7]} 10. dxc5 {[%clk 0:02:57.9]} 10... Qxc5 {[%clk 0:02:17.3]} 11. d4
{[%clk 0:02:56.5]} 11... Qa5 {[%clk 0:02:14.6]} 12. O-O {[%clk 0:02:56.4]} 12...
Nec6 {[%clk 0:02:09.5]} 13. a3 {[%clk 0:02:56.2]} 13... a6 {[%clk 0:01:55.3]}
14. Ne2 {[%clk 0:02:53.9]} 14... Nd7 {[%clk 0:01:52.3]} 15. Nf4 {[%clk
0:02:52.3]} 15... Be7 {[%clk 0:01:50.1]} 16. Be3 {[%clk 0:02:47]} 16... Qb5
{[%clk 0:01:44.8]} 17. b3 {[%clk 0:02:41.1]} 17... a5 {[%clk 0:01:43.7]} 18. Nd2
{[%clk 0:02:35.4]} 18... a4 {[%clk 0:01:38.9]} 19. b4 {[%clk 0:02:35.5]} 19...
Bg5 {[%clk 0:01:12.1]} 20. Nh3 {[%clk 0:02:35.3]} 20... Bxe3 {[%clk 0:01:01.1]}
21. fxe3 {[%clk 0:02:36.2]} 21... Qd3 {[%clk 0:00:56.5]} 22. Rf3 {[%clk
0:02:36.3]} 22... g5 {[%clk 0:00:27.6]} 23. Nf2 {[%clk 0:02:35.3]} 23... Qb5
{[%clk 0:00:23.5]} 24. Rc1 {[%clk 0:02:34]} 24... Ne7 {[%clk 0:00:19.2]} 25. e4
{[%clk 0:02:26.9]} 25... Qb6 {[%clk 0:00:18.2]} 26. exd5 {[%clk 0:02:18.4]}
26... exd5 {[%clk 0:00:19.1]} 27. Nf1 {[%clk 0:02:17.9]} 27... O-O {[%clk
0:00:12.6]} 28. Ne3 {[%clk 0:02:17.1]} 28... f5 {[%clk 0:00:10.3]} 29. Qd3
{[%clk 0:02:13.3]} 29... f4 {[%clk 0:00:05]} 30. Neg4 {[%clk 0:02:13.7]} 30...
Qe6 {[%clk 0:00:04.3]} 31. Qb5 {[%clk 0:02:08.7]} 31... Nc6 {[%clk 0:00:03.6]}
32. Rd3 {[%clk 0:01:55.6]} 32... Rab8 {[%clk 0:00:02.2]} 33. Qxa4 {[%clk
0:01:54.9]} 33... Nb6 {[%clk 0:00:01.5]} 34. Qc2 {[%clk 0:01:54.3]} 34... Nc4
{[%clk 0:00:02.4]} 35. Rdd1 {[%clk 0:01:54.5]} 35... Kg7 {[%clk 0:00:02.4]} 36.
b5 {[%clk 0:01:52.8]} 36... Ne7 {[%clk 0:00:02.3]} 37. Qc3 {[%clk 0:01:45.4]}
37... Nf5 {[%clk 0:00:02.3]} 38. Re1 {[%clk 0:01:36.6]} 38... Ng3 {[%clk
0:00:02.6]} 39. Qf3 {[%clk 0:01:30.3]} 39... Nxh5 {[%clk 0:00:02.1]} 40. Rxc4
{[%clk 0:01:30.7]} 40... dxc4 {[%clk 0:00:02.1]} 41. d5 {[%clk 0:01:31.6]} 41...
Qf5 {[%clk 0:00:02.5]} 42. e6 {[%clk 0:01:31.1]} 42... Nf6 {[%clk 0:00:02.5]}
43. d6 {[%clk 0:01:30.1]} 43... Nxg4 {[%clk 0:00:02.2]} 44. Nxg4 {[%clk
0:01:31]} 44... Qc5+ {[%clk 0:00:02.4]} 45. Kh2 {[%clk 0:01:31.7]} 45... Qxd6
{[%clk 0:00:02.9]} 46. Qc3+ {[%clk 0:01:32.4]} 46... Kg6 {[%clk 0:00:02.8]} 47.
Ne5+ {[%clk 0:01:31.2]} 47... Kf5 {[%clk 0:00:01.4]} 48. Qc2+ {[%clk 0:01:30.6]}
48... Kf6 {[%clk 0:00:02]} 49. Qg6+ {[%clk 0:01:30.3]} 49... Ke7 {[%clk
0:00:02.5]} 50. Qg7+ {[%clk 0:01:30.8]} 50... Ke8 {[%clk 0:00:03.1]} 51. Nxc4
{[%clk 0:01:16.6]} 51... Qe7 {[%clk 0:00:03]} 52. Qg6+ {[%clk 0:01:15.8]} 52...
Kd8 {[%clk 0:00:03.6]} 53. Rd1+ {[%clk 0:01:16.2]} 53... Kc7 {[%clk 0:00:02.4]}
54. Rd7+ {[%clk 0:01:15.7]} 54... Qxd7 {[%clk 0:00:02.8]} 55. exd7 {[%clk
0:01:16.6]} 55... Kxd7 {[%clk 0:00:03.7]} 56. Qd6+ {[%clk 0:01:16.5]} 1-0

[Event "Late-Titled-Tuesday-Blitz-April-30-2024"]
[Site "Chess.com"]
[Date "2024.04.30"]
[Round "5"]
[White "Djager97"]
[Black "sassassasss"]
[Result "1-0"]
[WhiteElo "2569"]
[BlackElo "2389"]
[TimeControl "180+1"]
[EndTime "14:56:41 PDT"]
[Termination "Djager97 won by checkmate"]

1. e4 {[%clk 0:03:00.9]} 1... Nc6 {[%clk 0:02:59.3]} 2. Nf3 {[%clk 0:03:00]}
2... d6 {[%clk 0:02:59.3]} 3. d4 {[%clk 0:02:59]} 3... Nf6 {[%clk 0:02:59.4]} 4.
Nc3 {[%clk 0:02:58.5]} 4... Bg4 {[%clk 0:02:59.6]} 5. Be3 {[%clk 0:02:55.5]}
5... a6 {[%clk 0:02:59.3]} 6. h3 {[%clk 0:02:53]} 6... Bh5 {[%clk 0:02:59]} 7.
d5 {[%clk 0:02:39.4]} 7... Ne5 {[%clk 0:02:58.1]} 8. g4 {[%clk 0:02:39.1]} 8...
Nxf3+ {[%clk 0:02:57.7]} 9. Qxf3 {[%clk 0:02:39]} 9... Bg6 {[%clk 0:02:58.1]}
10. O-O-O {[%clk 0:02:36]} 10... Qc8 {[%clk 0:02:46.8]} 11. Bd3 {[%clk
0:02:28.7]} 11... e5 {[%clk 0:02:45.2]} 12. dxe6 {[%clk 0:02:22.2]} 12... fxe6
{[%clk 0:02:40.1]} 13. h4 {[%clk 0:02:19.6]} 13... Nd7 {[%clk 0:02:34.2]} 14. h5
{[%clk 0:02:15.1]} 14... Bf7 {[%clk 0:02:31.7]} 15. Qg3 {[%clk 0:02:13]} 15...
Be7 {[%clk 0:02:29.5]} 16. g5 {[%clk 0:02:10.5]} 16... Ne5 {[%clk 0:02:10.1]}
17. g6 {[%clk 0:01:59.2]} 17... Nxd3+ {[%clk 0:01:37.6]} 18. cxd3 {[%clk
0:02:00.1]} 18... Bg8 {[%clk 0:01:21.2]} 19. h6 {[%clk 0:01:50.7]} 19... hxg6
{[%clk 0:01:11.4]} 20. Qxg6+ {[%clk 0:01:40.9]} 20... Bf7 {[%clk 0:01:07]} 21.
hxg7 {[%clk 0:01:21.4]} 21... Rg8 {[%clk 0:01:02.1]} 22. Qg3 {[%clk 0:01:02.6]}
22... Kd7 {[%clk 0:00:59.1]} 23. d4 {[%clk 0:00:47.5]} 23... Bf6 {[%clk
0:00:56.9]} 24. Bh6 {[%clk 0:00:47.8]} 24... e5 {[%clk 0:00:25]} 25. dxe5 {[%clk
0:00:46.9]} 25... Be7 {[%clk 0:00:22.6]} 26. exd6 {[%clk 0:00:39.6]} 26... cxd6
{[%clk 0:00:22.1]} 27. e5 {[%clk 0:00:39.7]} 27... Qc6 {[%clk 0:00:16.5]} 28.
exd6 {[%clk 0:00:39.8]} 28... Bf6 {[%clk 0:00:14.8]} 29. Rhe1 {[%clk 0:00:20.6]}
29... Rac8 {[%clk 0:00:14.2]} 30. Qg4+ {[%clk 0:00:20.5]} 30... Kd8 {[%clk
0:00:13.6]} 31. Bg5 {[%clk 0:00:20.9]} 31... Bxg5+ {[%clk 0:00:09.4]} 32. Qxg5+
{[%clk 0:00:21.8]} 32... Kd7 {[%clk 0:00:08.9]} 33. Qe7# {[%clk 0:00:22]} 1-0